Cogmind - Beta 13 @@@ ROGUE MODE // 2024.05.31 @ 12:07:44 Player: Blade Result: Self-destructed Performance ------------- Evolutions (1) 500 Regions Visited (4) 800 Robots Destroyed (6) 30 Value Destroyed (60) 60 Prototype IDs (0) 0 Alien Tech Used (0) 0 Bonus (200) 200 TOTAL SCORE: 1590 Bonus ------- Pacifist 200 Cogmind --------- Core Integrity 361/400 Matter 300/300 Energy 250/250 System Corruption 0% Temperature Cool (0) Movement Walking (190) Ox1 Location -9/Mines Parts ------- > --- POWER (1) -------- Ion Engine > --- PROPULSION (2) --- Aluminum Leg > --- UTILITY (4) ------ Small Storage Unit > --- WEAPON (2) ------- Small Laser Particle Cannon > --- INVENTORY (8) ---- Ion Engine Light Treads Light Treads EM Pulse Gun Proton Bomb Trap Proton Bomb Trap Proton Bomb Trap Peak State ------------ > --- POWER ------------ Ion Engine > --- PROPULSION ------- Aluminum Leg Aluminum Leg > --- UTILITY ---------- Small Storage Unit > --- WEAPON ----------- Small Laser Particle Cannon > --- INVENTORY -------- Ion Engine Light Treads Light Treads EM Pulse Gun Proton Bomb Trap Proton Bomb Trap Proton Bomb Trap Proton Bomb Trap [Rating: 7] Favorites ----------- Power Ion Engine Engine Ion Engine Propulsion Aluminum Leg Leg Aluminum Leg Utility Small Storage Unit Storage Small Storage Unit Weapon Small Laser Energy Gun Small Laser Energy Cannon Particle Cannon Build | -11 -10 -10 -9 -9 ------- Run | Yrd Mat Min Mat Min Slots Evolved 2 | . . . 2 . Power . | . . . . . Propulsion . | . . . . . Utility 2 | . . . 2 . Weapon . | . . . . . Parts Attached 1 | . . . 1 . Power . | . . . . . Engine . | . . . . . Core . | . . . . . Reactor . | . . . . . Propulsion . | . . . . . Treads . | . . . . . Leg . | . . . . . Wheel . | . . . . . Hover . | . . . . . Flight . | . . . . . Utility . | . . . . . Device . | . . . . . Storage . | . . . . . Processor . | . . . . . Hackware . | . . . . . Protection . | . . . . . Artifact . | . . . . . Weapon 1 | . . . 1 . Energy Gun . | . . . . . Energy Cannon 1 | . . . 1 . Ballistic Gun . | . . . . . Ballistic Cannon . | . . . . . Launcher . | . . . . . Special Weapon . | . . . . . Impact Weapon . | . . . . . Slashing Weapon . | . . . . . Piercing Weapon . | . . . . . Special Melee Weapon . | . . . . . Unidentified Prototypes . | . . . . . Parts Lost 1 | . . . . 1 Power . | . . . . . Propulsion 1 | . . . . 1 Utility . | . . . . . Weapon . | . . . . . Highest Loss Streak 1 | . . . . 1 To Critical Strikes . | . . . . . Average Slot Usage (%) 74 | . 85 85 66 66 Engine 12 | . 14 14 11 11 Leg 24 | . 28 28 22 22 Storage 12 | . 14 14 11 11 Energy Gun 19 | . 28 28 14 11 Energy Cannon 5 | . . . 7 11 Naked Turns . | . . . . . Heaviest Build 15 | 13 13 13 15 15 Greatest Support 20 | 20 20 20 20 20 Greatest Overweight (x) . | . . . . . Average Overweight (x) . | . . . . . Largest Inventory Capacity 8 | 8 8 8 8 8 Average Capacity 8 | 8 8 8 8 8 Most Carried 8 | 6 6 8 8 8 Average Carried 7 | 6 6 6 8 7 Final Capacity 8 | 8 8 8 8 8 Final Carried 8 | 6 6 8 8 7 Class Distribution -------------------- 100% | Mutant Dominant Class ---------------- Mutant | -10/Materials Mutant | -10/Mines Mutant | -9/Materials Mutant | -9/Mines Resources | -11 -10 -10 -9 -9 ----------- Run | Yrd Mat Min Mat Min Matter Collected 210 | 200 . . 10 . Remotely . | . . . . . Salvage Created 95 | . . . 47 48 Parts 13 | . . . 7 6 Haulers Intercepted . | . . . . . Recyclers Shooed . | . . . . . Parts Field Recycled . | . . . . . Retrieved Matter . | . . . . . Parts Self-Destructed . | . . . . . Prevented . | . . . . . Kills | -11 -10 -10 -9 -9 ------- Run | Yrd Mat Min Mat Min Combat Hostiles Destroyed 6 | . . . 3 3 Guns 4 | . . . 2 2 Cannons 2 | . . . 1 1 Classes Destroyed 1 | . . . 1 . Swarmer 6 | . . . 3 3 Best Kill Streak 3 | . . . 3 3 Combat Bots Only 3 | . . . 3 3 Max Kills in Single Turn 1 | . . . 1 1 Gunslinging . | . . . . . Exploded . | . . . . . Melee . | . . . . . Uniques/NPCs Destroyed . | . . . . . Combat | -11 -10 -10 -9 -9 -------- Run | Yrd Mat Min Mat Min Hostile Shots Fired 47 | . . . 20 27 Missed 11 | . . . 4 7 Damage Taken 449 | . . . 122 327 Core 39 | . . . 12 27 Absorbed by Shields . | . . . . . Core Remaining (%) 100 | 100 . 100 . . Volleys Fired 19 | . . . 11 8 Largest 2 | . . . 2 2 Hottest 108 | . . . 108 108 Shots Fired 38 | . . . 22 16 Gun 24 | . . . 16 8 Cannon 14 | . . . 6 8 Launcher . | . . . . . Special . | . . . . . Kinetic . | . . . . . Thermal 33 | . . . 17 16 Explosive . | . . . . . Electromagnetic 5 | . . . 5 . Robot Hit Streak 9 | . . . 3 9 Robot Miss Streak 3 | . . . 3 3 Penetration Max . | . . . . . Secondary Targets . | . . . . . Shots Hit Robots 22 | . . . 11 11 Core Hits 7 | . . . 4 3 Critical Kills . | . . . . . Critical Parts Destroyed . | . . . . . Critical Strikes . | . . . . . Melee Attacks . | . . . . . Impact . | . . . . . Slashing . | . . . . . Piercing . | . . . . . Sneak Attacks . | . . . . . Combat Hostiles . | . . . . . Follow-up Attacks . | . . . . . Damage Inflicted 325 | . . . 158 167 Guns 163 | . . . 97 66 Cannons 162 | . . . 61 101 Explosions . | . . . . . Melee . | . . . . . Ramming . | . . . . . Kinetic . | . . . . . Thermal 315 | . . . 148 167 Explosive . | . . . . . Electromagnetic 10 | . . . 10 . Impact . | . . . . . Slashing . | . . . . . Piercing . | . . . . . Highest Corruption . | . . . . . Average Corruption . | . . . . . Corruption Purged . | . . . . . Corruption Blocked . | . . . . . Overload Shots . | . . . . . Overflow Damage . | . . . . . Projectiles . | . . . . . Explosions . | . . . . . Melee . | . . . . . Knockbacks . | . . . . . Impact . | . . . . . Kinetic . | . . . . . Secondary . | . . . . . Self-Inflicted Damage . | . . . . . Shots . | . . . . . Rammed . | . . . . . Targets Rammed . | . . . . . Kicked . | . . . . . Crushed . | . . . . . Highest Temperature 312 | . . . 78 312 Average Temperature 92 | . . . 34 158 Received Heat Transfer . | . . . . . Siege Activations . | . . . . . Robots Corrupted . | . . . . . Combat Hostiles . | . . . . . Parts Fried . | . . . . . Impact Corruptions . | . . . . . Robots Melted . | . . . . . Combat Hostiles . | . . . . . Parts Melted 1 | . . . 1 . Heat Transferred 646 | . . . 311 335 Parts Sabotaged . | . . . . . Parts Stolen . | . . . . . Parts Stripped . | . . . . . Power Chain Reactions . | . . . . . Alert | -11 -10 -10 -9 -9 ------- Run | Yrd Mat Min Mat Min Peak Influence 131 | . . . 131 121 Initial 51 | . . . . 51 Average 56 | . . . 84 115 Maximum Alert Level . | . . . . . Low Security (%) 100 | 100 100 100 100 100 Level 1 . | . . . . . Level 2 . | . . . . . Level 3 . | . . . . . Level 4 . | . . . . . Level 5 . | . . . . . High Security . | . . . . . Max Security . | . . . . . Squads Dispatched 1 | . . . 1 . Investigation . | . . . . . Extermination . | . . . . . Reinforcement 1 | . . . 1 . Assault . | . . . . . Garrison . | . . . . . Intercept . | . . . . . Searches Triggered . | . . . . . Construction Impeded . | . . . . . Haulers Reinforced . | . . . . . Active Scanning Responses . | . . . . . Cargo Convoy Interrupts . | . . . . . Stealth | -11 -10 -10 -9 -9 --------- Run | Yrd Mat Min Mat Min Distress Signals . | . . . . . Communications Jammed . | . . . . . Distress Signals . | . . . . . Times Spotted 16 | . . . 8 8 Peak Tracking Total 5 | . . . 4 5 Tactical Retreats 2 | . . . 2 . Traps | -11 -10 -10 -9 -9 ------- Run | Yrd Mat Min Mat Min Traps Triggered . | . . . . . Indirectly . | . . . . . Trap Hack Attempts . | . . . . . Triggered . | . . . . . Disarmed . | . . . . . Reprogrammed . | . . . . . Reused . | . . . . . Traps Extracted . | . . . . . Installed 1 | . . . . 1 Triggered . | . . . . . Most Traps Carried 4 | . . 4 4 4 Machines | -11 -10 -10 -9 -9 ---------- Run | Yrd Mat Min Mat Min Machines Disabled . | . . . . . Max in Single Turn . | . . . . . Machines Repaired . | . . . . . Machines Dismantled . | . . . . . Machines Sabotaged . | . . . . . Overloaded Fab Kills . | . . . . . Hacking | -11 -10 -10 -9 -9 --------- Run | Yrd Mat Min Mat Min Machines Accessed 2 | . . . 2 . Terminals 2 | . . . 2 . Fabricators . | . . . . . Repair Stations . | . . . . . Recycling Units . | . . . . . Scanalyzers . | . . . . . Garrison Access . | . . . . . Total Hacks 2 | . . . 2 . Successful 1 | . . . 1 . Failed 1 | . . . 1 . Catastrophic 1 | . . . 1 . Database Lockouts . | . . . . . Manual 2 | . . . 2 . Terminals 2 | . . . 2 . Fabricators . | . . . . . Repair Stations . | . . . . . Recycling Units . | . . . . . Scanalyzers . | . . . . . Garrison Access . | . . . . . Terminal Hacks . | . . . . . Fabricator Hacks . | . . . . . Repair Station Hacks . | . . . . . Recycling Unit Hacks . | . . . . . Scanalyzer . | . . . . . Garrison Access Hacks . | . . . . . Unauthorized Hacks 1 | . . . 1 . Terminals 1 | . . . 1 . Botnet 1 | . . . 1 . Fabricators . | . . . . . Repair Stations . | . . . . . Recycling Units . | . . . . . Scanalyzers . | . . . . . Garrison Access . | . . . . . Data Cores Recovered . | . . . . . Used . | . . . . . Hacking Detections 1 | . . . 1 . Full Trace Events . | . . . . . Feedback Events . | . . . . . Feedback Blocked . | . . . . . Robot Schematics Acquired . | . . . . . Robots Built . | . . . . . Authchips . | . . . . . Time . | . . . . . Total Robot Build Rating . | . . . . . Part Schematics Acquired . | . . . . . Parts Built . | . . . . . Authchips . | . . . . . Time . | . . . . . Total Part Build Rating . | . . . . . Parts Repaired . | . . . . . Time . | . . . . . Parts Recycled . | . . . . . Recycled Matter . | . . . . . Retrieved Matter . | . . . . . Retrieved Components . | . . . . . Parts Scanalyzed . | . . . . . Part Schematics Acquired . | . . . . . Parts Damaged . | . . . . . Bothacking | -11 -10 -10 -9 -9 ------------ Run | Yrd Mat Min Mat Min Used RIF Installer . | . . . . . Robots Hacked . | . . . . . Non-combat . | . . . . . Combat . | . . . . . Robot Hacks Applied . | . . . . . Relay Couplers Released . | . . . . . Fabnet Peak Effective % . | . . . . . Robots Rewired . | . . . . . Allies Hacked . | . . . . . Hacks Repelled . | . . . . . Allies | -11 -10 -10 -9 -9 -------- Run | Yrd Mat Min Mat Min Total Allies . | . . . . . Largest Group . | . . . . . Highest-Rated Group . | . . . . . Highest-Rated Ally . | . . . . . Total Orders . | . . . . . Ally Attacks . | . . . . . Total Damage . | . . . . . Kills . | . . . . . Allies Corrupted . | . . . . . Allies Melted . | . . . . . Intel | -11 -10 -10 -9 -9 ------- Run | Yrd Mat Min Mat Min Robot Analysis Total . | . . . . . Derelict Logs Recovered . | . . . . . Drone Launches . | . . . . . Drone Recoveries . | . . . . . Exploration | -11 -10 -10 -9 -9 ------------- Run | Yrd Mat Min Mat Min Turns Passed 597 | 2 18 244 162 171 Spaces Moved 393 | 2 16 200 106 69 Core . | . . . . . Treads . | . . . . . Legs 393 | 2 16 200 106 69 Wheels . | . . . . . Hover . | . . . . . Flight . | . . . . . Fastest Speed 120 | 120 120 120 120 120 Average Speed 120 | 120 120 120 120 120 Slowest Speed 120 | 120 120 120 120 120 Overloaded Moves . | . . . . . Propulsion Burnouts . | . . . . . Robots Hopped . | . . . . . Cave-ins Triggered . | . . . . . Exploration Rate (%) 16 | 2 6 50 14 12 Regions Visited 4 Branch Regions 2 Pre-discovered Areas . | . . . . . Known Exits Taken . | . . . . . Unknown Exits Taken 4 | 1 1 1 1 . Scrap Searched . | . . . . . Spaces Dug . | . . . . . Terrain Destroyed . | . . . . . Melee . | . . . . . Projectile . | . . . . . AOE . | . . . . . Terrain Rammed . | . . . . . Walls Destroyed . | . . . . . Machines Disabled . | . . . . . Actions | -11 -10 -10 -9 -9 --------- Run | Yrd Mat Min Mat Min Total 481 | 1 15 205 119 141 Wait 63 | . . . 1 62 Move 389 | 1 15 199 105 69 Hop . | . . . . . Pick Up 4 | . . 4 . . Fast Attach 1 | . . . 1 . Attach . | . . . . . Detach . | . . . . . Swap . | . . . . . Drop 4 | . . 2 1 1 Fire 19 | . . . 11 8 Melee . | . . . . . Ram . | . . . . . Kick . | . . . . . Crush . | . . . . . Escape Stasis . | . . . . . Rewire . | . . . . . Trap 1 | . . . . 1 Miscellaneous . | . . . . . Route ------- -11/Scrapyard -10/Materials -10/Mines -9/Materials -9/Mines History --------- Turn | Location | Event 1 | -11/Scrapyard | Discovered new exit (range 1) 3 | -11/Scrapyard | Entered Materials 3 | -10/Materials | Discovered new exit (range 14) 21 | -10/Materials | Entered Mines 150 | -10/Mines | Found a hidden stash of uninstalled traps 252 | -10/Mines | Discovered new exit (range 11) 265 | -10/Mines | Entered Materials 265 | -9/Materials | Evolved 2 slots: Utility x2 314 | -9/Materials | Build established: Mutant 408 | -9/Materials | Discovered new exit (range 16) 427 | -9/Materials | Entered Mines 509 | -9/Mines | Assembled infested the area 598 | -9/Mines | Self-destructed Last Messages --------------- 00421_ T-07 Excavator is excavating. 00423_ K-01 Serf cleans the Recycling Unit. 00425_ T-07 Excavator is excavating. LOCATION=UNKNOWN GOAL=ESCAPE Something is scanning the area. 00428_ C-30 ARC bursts open, deploying its payload. 00428_ S-10 Pest unfolds itself. 00430_ S-10 Pest destroyed. 00433_ Destroyed Flight Unit. 00436_ S-10 Pest destroyed. 00445_ Destroyed Flight Unit. 00448_ S-10 Pest destroyed. 00509_ ALERT: Infestation in the mines, dispatching Demolisher response squad. 00571_ Dropped Proton Bomb Trap. 00571_ Installed Proton Bomb Trap. 00592_ T-07 Excavator destroyed. 00598_ Aluminum Leg destroyed. Map ----- +----------------------------------------------------+ | ????????????????????????????# #??? | | ??????????????????????###### #??? | | ????????????????????### #???? | | ???????????????????## #????? | | ??????????????????## % #????? | | ?????????????????## ===[ ##????? | | ?????????????????# [%%%#####?????? | | ?????????????????# *##?????????? | | ?????????????????# ##??????????? | | ?????????????????# #???????????? | | ?????????????????## #????###????? | | ??????????????????## #???## ##??? | | ???????????????????# #???# #??? | | ???????????????????# ###?# ##?? | | ???????????????????# #??# #?? | | ???????????????????#### #???# ##? | | ??????????????????????# #???## #? | | ??????????????????????# ###### #? | | ?????????????????????## ## #? | | ?????????????????##### ##? | | ?????????????????# ##?? | | ?????????????????# ##??? | | ?????????????????# # ##???? | | ?????????????????# ##????? | | ????????????????##= #????? | | ????????????????# %ssd @ #?????? | | ????????????????##d #?????? | | ???????????? r s ##?????? | | ?????????? #### # ##??????? | | ????????? ??????#?## ###???????? | | ????????????????????####??????????? | | ??????????????????????????????????? | | ??????????????????????????????????? | | ??????????????????????????????????? | | ??????????????????????????????????? | | ??????????????????????????????????? | | ??????????????????????????????????? | | ??????????????????????????????????? | | ??????????????????????????????????? | | ??????????????????????????????????? | | ??????????????????????????????????? | | ??????????????????????????????????? | | ??????????????????????????????????? | | ??????????????????????????????????? | | ??????????????????????????????????? | | ??????????????????????????????????? | | ??????????????????????????????????? | | ??????????????????????????????????? | | ??????????????????????????????????? | | ??????????????????????????????????? | +----------------------------------------------------+ Best States ------------- Heat Dissipation 28 Energy Generation 10 Energy Capacity 250 Matter Stores 300 Matter Capacity 300 Sight Range 16 Terrain Scan Density 10 Evasion (%) 55 Item Schematics ----------------- None Robot Schematics ------------------ None Fabricated ------------ Nothing Alien Tech Used ----------------- None Achievements -------------- None Challenges ------------ None Game ------ Seed MinesnifferReactiveGun Manual? 0 Play Time 00:06:06 Cumulative 70.1 hours Start 2024.05.31 @ 12:00:47 End 2024.05.31 @ 12:07:44 Sessions 1 Manual Loads 0 Difficulty Rogue Special Mode None Game No. 97 Rogue 13 Adventurer 79 Explorer 5 Win Type - Total 2 Types 2/0/0/0/0/0/0/0/0 Lore% 34 Gallery% 50 Achievement% 38 Wizard Run 0 Options --------- Layout 1 ASCII 0 Keyboard 0 Movement Arrows Keybinds 0 Fullscreen 2 Font 24/Smallcaps Map View 50x35 Zoom Use 0% Tactical HUD 1 Map Filters NONE Filters NONE Steam 1 RUN: 7d58ee30-dbc6-487a-b815-93be19c6382c